fUSD/lending_fUSD_20250620
["ID","MTS","AMOUNT","RATE_DAILY","PERIOD"]
[366673723,1750407049468,-490.0,0.00025778,4]
[366673724,1750407049478,-490.0,0.00025778,4]
[366673725,1750407049489,-494.4136507,0.00025778,4]
[366673726,1750407049499,-490.0,0.00025778,4]
[366673727,1750407049510,-490.0,0.00025778,4]
[366673728,1750407049521,-490.0,0.00025778,4]
[366673729,1750407049532,-490.0,0.00025778,4]
[366673730,1750407049542,-490.0,0.00025778,4]
[366673731,1750407049554,-490.0,0.00025778,4]
[366673732,1750407049564,-490.0,0.00025778,4]
[366673733,1750407049575,-605.82,0.00025778,4]
[366673734,1750407049585,-490.0,0.00025778,4]
[366673735,1750407049596,-490.0,0.00025778,4]
[366673736,1750407049606,-490.0,0.00025778,4]
[366673737,1750407049620,-490.0,0.00025778,4]
[366673738,1750407049631,-490.0,0.00025778,4]
[366673739,1750407049641,-490.0,0.00025778,4]
[366673740,1750407049653,-490.0,0.00025778,4]
[366673741,1750407049664,-493.08960074,0.00025778,4]
[366673742,1750407049675,-493.41945234,0.00025778,4]
[366673743,1750407049686,-490.0,0.00025778,4]
[366673744,1750407049697,-490.0,0.00025778,4]
[366673745,1750407049707,-490.0,0.00025778,4]
[366673746,1750407049718,-490.0,0.00025778,4]
[366673747,1750407049728,-490.0,0.00025778,4]
[366673748,1750407049739,-490.0,0.00025778,4]
[366673749,1750407049749,-490.0,0.00025778,4]
[366673750,1750407049759,-490.0,0.00025778,4]
[366673751,1750407049769,-213.30360723,0.00025778,4]
[366673752,1750407049780,-490.0,0.00025778,4]
[366673753,1750407049791,-490.0,0.00025778,4]
[366673754,1750407049801,-490.0,0.00025778,4]
[366673755,1750407049813,-490.0,0.00025778,4]
[366673756,1750407049823,-500.0,0.00025778,4]
[366673757,1750407049833,-506.04674391,0.00025778,4]
[366673758,1750407049843,-490.0,0.00025778,4]
[366673759,1750407049854,-490.0,0.00025778,4]
[366673760,1750407049864,-490.0,0.00025778,4]
[366673761,1750407049875,-490.0,0.00025778,4]
[366673762,1750407049886,-240.0,0.00025778,4]
[366673763,1750407049896,-490.0,0.00025778,4]
[366673764,1750407049906,-490.0,0.00025778,4]
[366673765,1750407049916,-490.0,0.00025778,4]
[366673766,1750407049926,-490.0,0.00025778,4]
[366673767,1750407049937,-490.0,0.00025778,4]
[366673768,1750407049948,-490.0,0.00025778,4]
[366673769,1750407049958,-490.0,0.00025778,4]
[366673770,1750407049968,-490.0,0.00025778,4]
[366673771,1750407049978,-590.62206137,0.00025778,4]
[366673772,1750407049989,-490.0,0.00025778,4]
[366673773,1750407049999,-490.0,0.00025778,4]
[366673774,1750407050010,-490.0,0.00025778,4]
[366673775,1750407050021,-490.0,0.00025778,4]
[366673776,1750407050031,-1388.5,0.00025778,4]
[366673777,1750407050041,-513.69,0.00025778,4]
[366673778,1750407050051,-490.0,0.00025778,4]
[366673779,1750407050063,-491.72315563,0.00025778,4]
[366673780,1750407050073,-490.0,0.00025778,4]
[366673781,1750407050083,-490.0,0.00025778,4]
[366673782,1750407050094,-490.0,0.00025778,4]
[366673783,1750407050104,-494.4031123,0.00025778,4]
[366673784,1750407050114,-490.0,0.00025778,4]
[366673785,1750407050124,-490.0,0.00025778,4]
[366673786,1750407050134,-490.0,0.00025778,4]
[366673787,1750407050145,-515.91680963,0.00025778,4]
[366673788,1750407050154,-954.43,0.00025778,4]
[366673789,1750407050165,-490.0,0.00025778,4]
[366673790,1750407050175,-490.0,0.00025778,4]
[366673791,1750407050186,-494.48,0.00025778,4]
[366673792,1750407050487,-490.0,0.00025778,4]
[366673793,1750407050524,-490.0,0.00025778,4]
[366673794,1750407050534,-490.0,0.00025778,4]
[366673795,1750407050545,-490.0,0.00025778,4]
[366673796,1750407050554,-1069.22,0.00025778,4]
[366673797,1750407050565,-490.0,0.00025778,4]
[366673798,1750407050575,-726.03,0.00025778,4]
[366673799,1750407050584,-490.0,0.00025778,4]
[366673800,1750407050594,-490.0,0.00025778,4]
[366673801,1750407050605,-497.00181518,0.00025778,4]
[366673802,1750407050618,-490.39,0.00025778,4]
[366673803,1750407050629,-490.0,0.00025778,4]
[366673804,1750407050638,-490.0,0.00025778,4]
[366673805,1750407050648,-490.0,0.00025778,4]
[366673806,1750407050658,-490.0,0.00025778,4]
[366673807,1750407050668,-491.00259116,0.00025778,4]
[366673808,1750407050678,-490.0,0.00025778,4]
[366673809,1750407050688,-490.0,0.00025778,4]
[366673810,1750407050699,-467.47274267,0.00025778,4]
[366673811,1750407050710,-730.11,0.00025778,4]
[366673812,1750407050720,-490.0,0.00025778,4]
[366673813,1750407050730,-490.0,0.00025778,4]
[366673814,1750407050740,-725.92,0.00025778,4]
[366673815,1750407050750,-490.0,0.00025778,4]
[366673816,1750407050760,-490.0,0.00025778,4]
[366673817,1750407050770,-837.2,0.00025778,4]
[366673818,1750407050780,-1154.44,0.00025778,4]
[366673819,1750407050790,-490.0,0.00025778,4]
[366673820,1750407050800,-1230.01,0.00025778,4]
[366673821,1750407050810,-563.8,0.00025778,4]
[366673822,1750407050820,-489.85069957,0.00025778,4]
[366673823,1750407050830,-528.58,0.00025778,4]
[366673824,1750407050840,-490.0,0.00025778,4]
[366673825,1750407050850,-2393.32,0.00025778,4]
[366673826,1750407050859,-490.0,0.00025778,4]
[366673827,1750407050870,-490.0,0.00025778,4]
[366673828,1750407050880,-490.0,0.00025778,4]
[366673829,1750407050889,-328.38527871,0.00025778,4]
[366673830,1750407050899,-493.41056451,0.00025778,4]
[366673831,1750407050909,-490.0,0.00025778,4]
[366673832,1750407050918,-490.0,0.00025778,4]
[366673833,1750407050928,-703.73,0.00025778,4]
[366673834,1750407050938,-555.68,0.00025778,4]
[366673835,1750407050948,-490.0,0.00025778,4]
[366673836,1750407050958,-490.0,0.00025778,4]
[366673837,1750407050969,-792.45,0.00025778,4]
[366673838,1750407050979,-694.46,0.00025778,4]
[366673839,1750407050989,-490.0,0.00025778,4]
[366673840,1750407050999,-490.0,0.00025778,4]
[366673841,1750407051009,-490.0,0.00025778,4]
[366673842,1750407051020,-2174.58,0.00025778,4]
[366673843,1750407051029,-490.0,0.00025778,4]
[366673844,1750407051040,-490.0,0.00025778,4]
[366673845,1750407051050,-490.0,0.00025778,4]
[366673846,1750407051060,-490.0,0.00025778,4]
[366673847,1750407051070,-548.94,0.00025778,4]
[366673848,1750407051080,-805.57,0.00025778,4]
[366673849,1750407051090,-490.0,0.00025778,4]
[366673850,1750407051100,-423.4817463,0.00025778,4]
[366673851,1750407051109,-490.26,0.00025778,4]
[366673852,1750407051119,-490.0,0.00025778,4]
[366673853,1750407051129,-490.0,0.00025778,4]
[366673854,1750407051139,-490.0,0.00025778,4]
[366673855,1750407051149,-490.0,0.00025778,4]
[366673856,1750407051159,-899.33,0.00025778,4]
[366673857,1750407051169,-1963.29,0.00025778,4]
[366673858,1750407051179,-552.46229094,0.00025778,4]
[366673859,1750407051189,-490.0,0.00025778,4]
[366673860,1750407051199,-503.00509787,0.00025778,4]
[366673861,1750407051209,-490.0,0.00025778,4]
[366673862,1750407051219,-8233.36,0.00025778,4]
[366673863,1750407051229,-628.52,0.00025778,4]
[366673864,1750407051239,-490.0,0.00025778,4]
[366673865,1750407051248,-1462.45,0.00025778,4]
[366673866,1750407051258,-490.0,0.00025778,4]
[366673867,1750407051267,-490.0,0.00025778,4]
[366673868,1750407051277,-490.0,0.00025778,4]
[366673869,1750407051287,-1862.28,0.00025778,4]
[366673870,1750407051296,-490.0,0.00025778,4]
[366673871,1750407051306,-490.0,0.00025778,4]
[366673872,1750407051316,-490.0,0.00025778,4]
[366673873,1750407051326,-490.0,0.00025778,4]
[366673874,1750407051335,-1182.16,0.00025778,4]
[366673875,1750407051345,-490.0,0.00025778,4]
[366673876,1750407051355,-1922.92,0.00025778,4]
[366673877,1750407051364,-492.42254388,0.00025778,4]
[366673878,1750407051374,-983.67,0.00025778,4]
[366673879,1750407051384,-490.0,0.00025778,4]
[366673880,1750407051394,-490.0,0.00025778,4]
[366673881,1750407051404,-3494.09,0.00025778,4]
[366673882,1750407051413,-490.0,0.00025778,4]
[366673883,1750407051423,-490.0,0.00025778,4]
[366673884,1750407051432,-509.66,0.00025778,4]
[366673885,1750407051442,-490.0,0.00025778,4]
[366673886,1750407051452,-490.0,0.00025778,4]
[366673887,1750407051462,-1826.65,0.00025778,4]
[366673888,1750407051471,-510.71,0.00025778,4]
[366673889,1750407051481,-490.0,0.00025778,4]
[366673890,1750407051491,-557.69,0.00025778,4]
[366673891,1750407051501,-490.0,0.00025778,4]
[366673892,1750407051511,-494.60133844,0.00025778,4]
[366673893,1750407051521,-490.0,0.00025778,4]
[366673894,1750407051531,-2472.1,0.00025778,4]
[366673895,1750407051541,-490.0,0.00025778,4]
[366673896,1750407051551,-495.66,0.00025778,4]
[366673897,1750407051562,-5124.08,0.00025778,4]
[366673898,1750407051571,-787.07,0.00025778,4]
[366673899,1750407051581,-490.0,0.00025778,4]
[366673900,1750407051591,-815.32,0.00025778,4]
[366673901,1750407051601,-490.0,0.00025778,4]
[366673902,1750407051612,-490.0,0.00025778,4]
[366673903,1750407051623,-1153.34,0.00025778,4]
[366673904,1750407051633,-754.45,0.00025778,4]
[366673905,1750407051643,-490.0,0.00025778,4]
[366673906,1750407051654,-490.0,0.00025778,4]
[366673907,1750407051664,-5818.49,0.00025778,4]
[366673908,1750407051674,-560.96,0.00025778,4]
[366673909,1750407051684,-490.0,0.00025778,4]
[366673910,1750407051696,-490.0,0.00025778,4]
[366673911,1750407051706,-1582.19,0.00025778,4]
[366673912,1750407051716,-1582.19,0.00025778,4]
[366673913,1750407051726,-490.0,0.00025778,4]
[366673914,1750407051735,-490.0,0.00025778,4]
[366673915,1750407051745,-990.49,0.00025778,4]
[366673916,1750407051755,-490.0,0.00025778,4]
[366673917,1750407051765,-490.0,0.00025778,4]
[366673918,1750407051775,-346.96617486,0.00025778,4]
[366673919,1750407051785,-490.0,0.00025778,4]
[366673920,1750407051794,-514.33,0.00025778,4]
[366673921,1750407051805,-515.29,0.00025778,4]
[366673922,1750407051815,-531.66,0.00025778,4]
[366673923,1750407051824,-638.54,0.00025778,4]
[366673924,1750407051834,-1588.57,0.00025778,4]
[366673925,1750407051844,-511.08,0.00025778,4]
[366673926,1750407051854,-490.0,0.00025778,4]
[366673927,1750407051863,-824.72,0.00025778,4]
[366673928,1750407051873,-617.03,0.00025778,4]
[366673929,1750407051883,-490.0,0.00025778,4]
[366673930,1750407051894,-490.0,0.00025778,4]
[366673931,1750407051904,-419.45002904,0.00025778,4]
[366673932,1750407051914,-490.0,0.00025778,4]
[366673933,1750407051924,-490.0,0.00025778,4]
[366673934,1750407051934,-1586.33,0.00025778,4]
[366673935,1750407051944,-490.0,0.00025778,4]
[366673936,1750407051954,-490.0,0.00025778,4]
[366673937,1750407051964,-490.0,0.00025778,4]
[366673938,1750407051974,-490.0,0.00025778,4]
[366673939,1750407051984,-490.0,0.00025778,4]
[366673940,1750407051994,-1342.46,0.00025778,4]
[366673941,1750407052004,-490.0,0.00025778,4]
[366673942,1750407052014,-490.0,0.00025778,4]
[366673943,1750407052024,-490.0,0.00025778,4]
[366673944,1750407052034,-490.0,0.00025778,4]
[366673945,1750407052044,-5691.76,0.00025778,4]
[366673946,1750407052055,-491.46,0.00025778,4]
[366673947,1750407052065,-490.0,0.00025778,4]
[366673948,1750407052075,-355.35649534,0.00025778,4]
[366673949,1750407052085,-490.0,0.00025778,4]
[366673950,1750407052095,-490.0,0.00025778,4]
[366673951,1750407052105,-490.0,0.00025778,4]
[366673952,1750407052115,-490.0,0.00025778,4]
[366673953,1750407052125,-490.0,0.00025778,4]
[366673954,1750407052135,-1081.06,0.00025778,4]
[366673955,1750407052145,-490.0,0.00025778,4]
[366673956,1750407052156,-490.0,0.00025778,4]
[366673957,1750407052165,-490.0,0.00025778,4]
[366673958,1750407052176,-490.0,0.00025778,4]
[366673959,1750407052186,-6478.15,0.00025778,4]
[366673960,1750407052196,-490.0,0.00025778,4]
[366673961,1750407052206,-627.44,0.00025778,4]
[366673962,1750407052216,-490.0,0.00025778,4]
[366673963,1750407052226,-490.0,0.00025778,4]
[366673964,1750407052235,-490.0,0.00025778,4]
[366673965,1750407052245,-617.49,0.00025778,4]
[366673966,1750407052255,-490.0,0.00025778,4]
[366673967,1750407052265,-490.0,0.00025778,4]
[366673968,1750407052275,-2867.59,0.00025778,4]
[366673969,1750407052284,-598.21,0.00025778,4]
[366673970,1750407052294,-581.28030454,0.00025778,4]
[366673971,1750407052304,-490.0,0.00025778,4]
[366673972,1750407052314,-210.46040971,0.00025778,4]
[366673973,1750407052324,-490.0,0.00025778,4]
[366673974,1750407052336,-490.0,0.00025778,2]
[366673975,1750407052346,-4000.48,0.00025778,4]
[366673976,1750407052357,-490.0,0.00025778,4]
[366673977,1750407052366,-490.0,0.00025778,4]
[366673978,1750407052377,-490.0,0.00025778,4]
[366673979,1750407052388,-490.0,0.00025778,4]
[366673980,1750407052398,-490.0,0.00025778,4]
[366673981,1750407052408,-490.0,0.00025778,4]
[366673982,1750407052419,-490.0,0.00025778,4]
[366673983,1750407052429,-193.11107184,0.00025778,4]
[366673984,1750407052439,-490.0,0.00025778,4]
[366673985,1750407052449,-490.0,0.00025778,4]
[366673986,1750407052459,-492.19739741,0.00025778,4]
[366673987,1750407052469,-490.0,0.00025778,4]
[366673988,1750407052481,-490.0,0.00025778,4]
[366673989,1750407052492,-490.0,0.00025778,4]
[366673990,1750407052503,-490.0,0.00025778,4]
[366673991,1750407052512,-1172.45,0.00025778,4]
[366673992,1750407052522,-490.0,0.00025778,4]
[366673993,1750407052532,-490.0,0.00025778,4]
[366673994,1750407052541,-491.38916751,0.00025778,4]
[366673995,1750407052551,-490.0,0.00025778,4]
[366673996,1750407052562,-1666.87,0.00025778,4]
[366673997,1750407052571,-1802.82,0.00025778,4]
[366673998,1750407052581,-490.0,0.00025778,4]
[366673999,1750407052591,-834.3,0.00025778,4]
[366674000,1750407052601,-3949.3,0.00025778,4]
[366674001,1750407052611,-3949.3,0.00025778,4]
[366674002,1750407052626,-389.41544312,0.00025778,4]
[366674003,1750407052637,-493.24293935,0.00025778,4]
[366674004,1750407052647,-564.76,0.00025778,4]
[366674005,1750407052657,-490.0,0.00025778,4]
[366674006,1750407052667,-490.0,0.00025778,4]
[366674007,1750407052676,-1643.14,0.00025778,4]
[366674008,1750407052687,-492.96,0.00025778,4]
[366674009,1750407052697,-1059.19,0.00025778,4]
[366674010,1750407052708,-490.0,0.00025778,4]
[366674011,1750407052717,-490.0,0.00025778,4]
[366674012,1750407052729,-561.73,0.00025778,4]
[366674013,1750407052739,-2683.36,0.00025778,4]
[366674014,1750407052749,-2723.46,0.00025778,4]
[366674015,1750407052759,-575.47,0.00025778,4]
[366674016,1750407052769,-490.0,0.00025778,4]
[366674017,1750407052780,-490.0,0.00025778,4]
[366674018,1750407052790,-490.0,0.00025778,4]
[366674019,1750407052800,-490.0,0.00025778,4]
[366674020,1750407052810,-12521.81,0.00025778,4]
[366674021,1750407052819,-490.0,0.00025778,4]
[366674022,1750407052830,-490.0,0.00025778,4]
[366674023,1750407052840,-490.0,0.00025778,4]
[366674024,1750407052850,-412.46730709,0.00025778,4]
[366674025,1750407052861,-731.18,0.00025778,4]
[366674026,1750407052871,-490.0,0.00025778,4]
[366674027,1750407052881,-938.96,0.00025778,4]
[366674028,1750407052891,-490.0,0.00025778,4]
[366674029,1750407052901,-520.39,0.00025778,4]
[366674030,1750407052912,-497.86,0.00025778,4]
[366674031,1750407052922,-490.0,0.00025778,4]
[366674032,1750407052932,-918.86,0.00025778,4]
[366674033,1750407052942,-500.0,0.00025778,4]
[366674034,1750407052952,-300.0,0.00025778,4]
[366674035,1750407052962,-4618.84,0.00025778,4]
[366674036,1750407052973,-490.0,0.00025778,4]
[366674037,1750407052982,-490.0,0.00025778,4]
[366674038,1750407052992,-2124.86,0.00025778,4]
[366674039,1750407053003,-490.0,0.00025778,4]
[366674040,1750407053013,-698.7,0.00025778,4]
[366674041,1750407053023,-490.0,0.00025778,4]
[366674042,1750407053033,-490.0,0.00025778,4]
[366674043,1750407053042,-490.0,0.00025778,4]
[366674045,1750407053052,-490.0,0.00025778,4]
[366674046,1750407053063,-500.0,0.00025778,2]
[366674047,1750407053073,-616.21,0.00025778,4]
[366674048,1750407053084,-500.0,0.00025778,2]
[366674049,1750407053094,-1065.74,0.00025778,4]
[366674050,1750407053104,-1000.0,0.00025779,5]
[366674051,1750407053114,-1000.0,0.00025779,5]
[366674052,1750407053124,-1000.0,0.00025779,5]
[366674053,1750407053134,-1000.0,0.00025779,5]
[366674054,1750407053144,-1000.0,0.00025779,5]
[366674055,1750407053154,-1000.0,0.00025779,5]
[366674056,1750407053164,-1000.0,0.00025779,5]
[366674057,1750407053174,-1000.0,0.00025779,5]
[366674058,1750407053183,-1000.0,0.00025779,5]
[366674059,1750407053193,-1000.0,0.00025779,5]
[366674060,1750407053202,-1000.0,0.00025779,5]
[366674061,1750407053212,-1000.0,0.00025779,5]
[366674062,1750407053222,-1000.0,0.00025779,5]
[366674063,1750407053231,-1000.0,0.00025779,5]
[366674064,1750407053241,-1000.0,0.00025779,5]
[366674065,1750407053251,-1000.0,0.00025779,5]
[366674066,1750407053261,-1000.0,0.00025779,5]
[366674067,1750407053271,-1000.0,0.00025779,5]
[366674068,1750407053281,-1000.0,0.00025779,5]
[366674069,1750407053291,-1000.0,0.00025779,5]
[366674070,1750407053300,-1000.0,0.00025779,5]
[366674071,1750407053309,-1000.0,0.00025779,5]
[366674072,1750407053319,-1000.0,0.00025779,5]
[366674073,1750407053328,-1000.0,0.00025779,5]
[366674074,1750407053338,-1000.0,0.00025779,5]
[366674075,1750407053347,-1000.0,0.00025779,5]
[366674076,1750407053357,-1000.0,0.00025779,5]
[366674077,1750407053366,-1000.0,0.00025779,5]
[366674078,1750407053375,-1000.0,0.00025779,5]
[366674079,1750407053385,-1000.0,0.00025779,5]
[366674080,1750407053394,-1000.0,0.00025779,5]
[366674081,1750407053404,-1000.0,0.00025779,5]
[366674082,1750407053413,-1000.0,0.00025779,5]
[366674083,1750407053423,-1000.0,0.00025779,5]
[366674084,1750407053432,-1000.0,0.00025779,5]
[366674085,1750407053442,-1000.0,0.00025779,5]
[366674086,1750407053452,-1000.0,0.00025779,5]
[366674087,1750407053462,-1000.0,0.00025779,5]
[366674088,1750407053471,-1000.0,0.00025779,5]
[366674089,1750407053482,-1000.0,0.00025779,5]
[366674090,1750407053492,-1000.0,0.00025779,5]
[366674091,1750407053502,-1000.0,0.00025779,5]
[366674092,1750407053511,-1000.0,0.00025779,5]
[366674093,1750407053521,-1000.0,0.00025779,5]
[366674094,1750407053530,-1000.0,0.00025779,5]
[366674095,1750407053540,-1000.0,0.00025779,5]
[366674096,1750407053550,-1000.0,0.00025779,5]
[366674097,1750407053560,-1000.0,0.00025779,5]
[366674098,1750407053570,-1000.0,0.00025779,5]
[366674099,1750407053580,-1000.0,0.00025779,5]
[366674100,1750407053590,-862.0,0.00025779,5]
[366674101,1750407053600,-569.97,0.00025779,4]
[366674102,1750407053890,-165.679303,0.00025779,4]
[366674103,1750407053900,-490.0,0.00025779,4]
[366674104,1750407053910,-490.0,0.00025779,4]
[366674105,1750407053920,-490.0,0.00025779,4]
[366674106,1750407053930,-490.0,0.00025779,4]
[366674107,1750407053940,-490.0,0.00025779,4]
[366674108,1750407053950,-490.0,0.00025779,4]
[366674109,1750407053960,-490.0,0.00025779,4]
[366674110,1750407053970,-490.0,0.00025779,4]
[366674111,1750407053980,-490.0,0.00025779,4]
[366674112,1750407053990,-490.0,0.00025779,4]
[366674113,1750407054000,-556.02,0.00025779,4]
[366674114,1750407054015,-490.0,0.00025779,4]
[366674115,1750407054026,-490.0,0.00025779,4]
[366674116,1750407054036,-490.0,0.00025779,4]
[366674117,1750407054046,-490.0,0.00025779,4]
[366674118,1750407054057,-490.0,0.00025779,4]
[366674119,1750407054067,-490.0,0.00025779,4]
[366674120,1750407054077,-490.0,0.00025779,4]
[366674121,1750407054087,-490.0,0.00025779,4]
[366674122,1750407054098,-490.0,0.00025779,4]
[366674123,1750407054108,-490.0,0.00025779,4]
[366674124,1750407054119,-490.0,0.00025779,4]
[366674125,1750407054129,-490.0,0.00025779,4]
[366674126,1750407054140,-490.0,0.00025779,4]
[366674127,1750407054151,-818.61,0.00025779,4]
[366674128,1750407054161,-490.0,0.00025779,4]
[366674129,1750407054171,-733.19,0.00025779,4]
[366674130,1750407054182,-490.0,0.00025779,4]
[366674131,1750407054192,-490.0,0.00025779,4]
[366674132,1750407054202,-490.0,0.00025779,4]
[366674133,1750407054212,-490.0,0.00025779,4]
[366674134,1750407054222,-490.0,0.00025779,4]
[366674135,1750407054232,-614.64062881,0.00025779,4]
[366674136,1750407054242,-490.0,0.00025779,4]
[366674137,1750407054251,-490.0,0.00025779,4]
[366674138,1750407054261,-490.0,0.00025779,4]
[366674139,1750407054271,-490.0,0.00025779,4]
[366674140,1750407054281,-537.76,0.00025779,4]
[366674141,1750407054295,-559.63,0.00025779,4]
[366674142,1750407054307,-490.0,0.00025779,4]
[366674143,1750407054317,-500.0,0.00025779,2]
[366674144,1750407054328,-500.0,0.00025779,2]
[366674145,1750407054338,-377.85028814,0.00025779,2]
[366674146,1750407054348,-490.0,0.00025779,4]
[366674147,1750407054358,-490.0,0.00025779,4]
[366674148,1750407054368,-490.0,0.00025779,4]
[366674149,1750407054378,-719.48,0.00025779,4]
[366674150,1750407054389,-491.40508346,0.00025779,4]
[366674151,1750407054399,-490.0,0.00025779,4]
[366674152,1750407054408,-490.0,0.00025779,4]
[366674153,1750407054418,-506.62508699,0.00025779,4]
[366674154,1750407054427,-920.92,0.00025779,4]
[366674155,1750407054438,-490.0,0.00025779,4]
[366674156,1750407054454,-934.62,0.00025779,4]
[366674157,1750407054465,-490.0,0.00025779,4]
[366674158,1750407054476,-490.0,0.00025779,4]
[366674159,1750407054486,-490.0,0.00025779,4]
[366674160,1750407054496,-506.24,0.00025779,4]
[366674161,1750407054506,-490.0,0.00025779,4]
[366674162,1750407054517,-490.0,0.00025779,4]
[366674163,1750407054527,-490.0,0.00025779,4]
[366674164,1750407054537,-490.0,0.00025779,4]
[366674165,1750407054548,-490.0,0.00025779,4]
[366674166,1750407054560,-490.0,0.00025779,4]
[366674167,1750407054571,-490.0,0.00025779,4]
[366674168,1750407054582,-490.0,0.00025779,4]
[366674169,1750407054592,-628.27,0.00025779,4]
[366674170,1750407054603,-490.0,0.00025779,4]
[366674171,1750407054616,-502.45,0.00025779,4]
[366674172,1750407054626,-490.0,0.00025779,4]
[366674173,1750407054636,-490.0,0.00025779,4]
[366674174,1750407054646,-490.0,0.00025779,4]
[366674175,1750407054657,-490.0,0.00025779,4]
[366674176,1750407054667,-490.0,0.00025779,4]
[366674177,1750407054677,-490.0,0.00025779,4]
[366674178,1750407054687,-567.89,0.00025779,4]
[366674179,1750407054699,-490.0,0.00025779,4]
[366674180,1750407054710,-490.0,0.00025779,4]
[366674181,1750407054721,-490.0,0.00025779,4]
[366674182,1750407054731,-504.93,0.00025779,4]
[366674183,1750407054742,-490.0,0.00025779,4]
[366674184,1750407054751,-490.0,0.00025779,4]
[366674185,1750407054761,-490.0,0.00025779,4]
[366674186,1750407054772,-490.0,0.00025779,4]
[366674187,1750407054782,-490.0,0.00025779,4]
[366674188,1750407054791,-490.0,0.00025779,4]
[366674189,1750407054801,-490.0,0.00025779,4]
[366674190,1750407054812,-490.0,0.00025779,4]
[366674191,1750407054822,-490.0,0.00025779,4]
[366674192,1750407054832,-490.0,0.00025779,4]
[366674193,1750407054842,-490.0,0.00025779,4]
[366674194,1750407054851,-490.0,0.00025779,4]
[366674195,1750407054862,-754.04,0.00025779,4]
[366674196,1750407054871,-754.04,0.00025779,4]
[366674197,1750407054881,-754.04,0.00025779,4]
[366674198,1750407054896,-490.0,0.00025779,4]
[366674199,1750407054905,-490.0,0.00025779,4]
[366674200,1750407054915,-490.0,0.00025779,4]
[366674201,1750407054926,-490.0,0.00025779,4]
[366674202,1750407054936,-607.47,0.00025779,4]
[366674203,1750407054947,-492.35106503,0.00025779,4]
[366674204,1750407054957,-1653.66,0.00025779,4]
[366674205,1750407054967,-780.81,0.00025779,4]
[366674206,1750407054978,-490.0,0.00025779,4]
[366674207,1750407054989,-1203.36,0.00025779,4]
[366674208,1750407054998,-490.0,0.00025779,4]
[366674209,1750407055009,-490.0,0.00025779,4]
[366674210,1750407055020,-490.0,0.00025779,4]
[366674211,1750407055029,-490.0,0.00025779,4]
[366674212,1750407055039,-490.0,0.00025779,4]
[366674213,1750407055050,-491.24823752,0.00025779,4]
[366674214,1750407055062,-490.0,0.00025779,4]
[366674215,1750407055072,-490.0,0.00025779,4]
[366674216,1750407055081,-575.05,0.00025779,4]
[366674217,1750407055092,-490.0,0.00025779,4]
[366674218,1750407055103,-177.07148182,0.00025779,4]
[366674219,1750407055113,-490.0,0.00025779,4]
[366674220,1750407055124,-304.10324989,0.00025779,4]
[366674221,1750407055134,-490.0,0.00025779,4]
[366674222,1750407055145,-490.0,0.00025779,4]
[366674223,1750407055155,-490.0,0.00025779,4]